bitfinex-derivatives/quotes_BTCF0:USTF0_20251111
["timestamp","ask_amount","ask_price","bid_price","bid_amount"]
[1762832755381,0.33594522,106500.0,106490.0,0.1508888]
[1762832755689,0.32269522,106500.0,106490.0,0.1508888]
[1762832755879,0.43040522,106500.0,106490.0,0.1508888]
[1762832757591,0.24439949,106500.0,106490.0,0.1508888]
[1762832757793,0.1512488,106490.0,106480.0,0.00014043]
[1762832757992,0.1512488,106490.0,106450.0,0.01324]
[1762832757993,0.04353,106460.0,106450.0,0.1506386]
[1762832758289,0.22987949,106460.0,106450.0,0.1502686]
[1762832758492,0.32384479,106460.0,106450.0,0.1502686]
[1762832758787,0.32384479,106460.0,106450.0,0.0563]
[1762832759393,0.32584479,106460.0,106450.0,0.1502741]
[1762832760794,0.23187949,106460.0,106450.0,0.1502741]
[1762832761090,0.23487949,106460.0,106450.0,0.1512741]
[1762832761285,0.32884479,106460.0,106450.0,0.1512741]
[1762832761789,0.23487949,106460.0,106450.0,0.1512741]
[1762832762385,0.43273052,106460.0,106450.0,0.001]
[1762832763890,0.05631,106440.0,106420.0,0.02323999]
[1762832764195,0.24365949,106430.0,106420.0,0.05667]
[1762832764488,0.24365949,106430.0,106420.0,0.1506706]
[1762832764694,0.33765129,106430.0,106420.0,0.1506706]
[1762832764885,0.24557556,106430.0,106420.0,0.1506706]
[1762832765087,0.24557556,106430.0,106420.0,0.1536706]
[1762832765284,0.33765129,106430.0,106420.0,0.1536706]
[1762832765489,0.33765129,106430.0,106420.0,0.05967]
[1762832765694,0.33765129,106430.0,106420.0,0.1536706]
[1762832765997,0.33865129,106430.0,106420.0,0.1526706]
[1762832766288,0.15258376,106430.0,106420.0,0.1526706]
[1762832766488,0.13880376,106430.0,106420.0,0.1526706]
[1762832766689,0.09527376,106430.0,106420.0,0.1526706]
[1762832766890,0.09527376,106430.0,106420.0,0.48166633]
[1762832767488,0.09307573,106430.0,106420.0,0.48166633]
[1762832767694,0.09307573,106430.0,106420.0,0.24774633]
[1762832767890,0.09221616,106440.0,106430.0,0.1506618]
[1762832768095,0.09221616,106440.0,106430.0,0.3855418]
[1762832768694,0.11647419,106440.0,106430.0,0.3855418]
[1762832768895,0.11647419,106440.0,106430.0,0.1506618]
[1762832769092,0.23101992,106440.0,106430.0,0.1516618]
[1762832769698,0.13894419,106440.0,106430.0,0.1516618]
[1762832769892,0.23101992,106440.0,106430.0,0.1526618]
[1762832770594,0.13894419,106440.0,106430.0,0.1526618]
[1762832770794,0.09541419,106440.0,106430.0,0.1526618]
[1762832770994,0.00333846,106440.0,106430.0,0.3875418]
[1762832771295,0.13894419,106440.0,106430.0,0.1526618]
[1762832771598,0.09541419,106440.0,106430.0,0.1526618]
[1762832771992,0.00333846,106440.0,106430.0,0.1526618]
[1762832772298,0.09541419,106440.0,106430.0,0.1526618]
[1762832773591,0.09541419,106440.0,106430.0,0.24473753]
[1762832773791,0.1512722,106470.0,106460.0,0.1373953]
[1762832773986,0.1512722,106470.0,106460.0,0.1506353]
[1762832773987,0.15158376,106470.0,106460.0,0.1506353]
[1762832774200,0.13780376,106470.0,106460.0,0.1506353]
[1762832774400,0.11633376,106470.0,106460.0,0.1506353]
[1762832774600,0.11633376,106470.0,106460.0,0.3854353]
[1762832775094,0.14080376,106470.0,106460.0,0.1516353]
[1762832775692,0.14080376,106470.0,106460.0,0.3864353]
[1762832776092,0.14280376,106470.0,106460.0,0.1516353]
[1762832776291,0.12133376,106470.0,106460.0,0.1516353]
[1762832776498,0.09527376,106470.0,106460.0,0.3894353]
[1762832776697,0.09527376,106470.0,106460.0,0.3924353]
[1762832776899,0.09527376,106470.0,106460.0,0.1576353]
[1762832777801,0.09307573,106470.0,106460.0,0.3924353]
[1762832778002,0.001,106470.0,106460.0,0.48451103]
[1762832778593,0.09221616,106480.0,106470.0,0.1506265]
[1762832778794,0.09221616,106480.0,106470.0,0.3854265]
[1762832778994,0.09221616,106480.0,106470.0,0.1506265]
[1762832779198,0.09441419,106480.0,106470.0,0.1506265]
[1762832779696,0.09441419,106480.0,106470.0,0.1556265]
[1762832779892,0.02539846,106480.0,106470.0,0.1556265]
[1762832780103,0.11747419,106480.0,106470.0,0.1556265]
[1762832780497,0.00333846,106480.0,106470.0,0.1556265]
[1762832780800,0.11739419,106480.0,106470.0,0.1536265]
[1762832781004,0.13996419,106480.0,106470.0,0.1566265]
[1762832781204,0.23203992,106480.0,106470.0,0.1566265]
[1762832781405,0.13996419,106480.0,106470.0,0.1566265]
[1762832782104,0.24498992,106480.0,106470.0,0.1566265]
[1762832782698,0.24498992,106480.0,106470.0,0.1576265]
[1762832782895,0.33893752,106480.0,106470.0,0.1576265]
[1762832783100,0.33893752,106480.0,106470.0,0.1443865]
[1762832783317,0.33893752,106480.0,106470.0,0.1230065]
[1762832783500,0.33893752,106480.0,106470.0,0.1210065]
[1762832783808,0.33893752,106480.0,106470.0,0.1426865]
[1762832784003,0.33893752,106480.0,106470.0,0.1406865]
[1762832784310,0.33893752,106480.0,106470.0,0.1436865]
[1762832784712,0.33893752,106480.0,106470.0,0.1220065]
[1762832785511,0.33893752,106480.0,106470.0,0.1406865]
[1762832785813,0.33893752,106480.0,106470.0,0.1426865]
[1762832787408,0.33893752,106480.0,106470.0,0.0989564]
[1762832788006,0.33893752,106480.0,106470.0,0.1220464]
[1762832788211,0.33893752,106480.0,106470.0,0.1437264]
[1762832790513,0.43101325,106480.0,106470.0,0.005]
[1762832790704,0.43101325,106480.0,106450.0,0.13887913]
[1762832790705,0.1458253,106460.0,106450.0,0.13887913]
[1762832790907,0.09427376,106460.0,106450.0,0.14430913]
[1762832791316,0.11625376,106460.0,106450.0,0.14430913]
[1762832791511,0.13882376,106460.0,106450.0,0.14430913]
[1762832791905,0.13882376,106460.0,106450.0,0.14530913]
[1762832792309,0.33781479,106460.0,106450.0,0.14530913]
[1762832792514,0.24384949,106460.0,106450.0,0.14530913]
[1762832792901,0.23089949,106460.0,106450.0,0.14530913]
[1762832793318,0.24384949,106460.0,106450.0,0.14530913]
[1762832793515,0.23089949,106460.0,106450.0,0.14530913]
[1762832796013,0.32486479,106460.0,106450.0,0.14530913]
[1762832796320,0.04674803,106460.0,106450.0,0.14530913]
[1762832796618,0.23089949,106460.0,106450.0,0.14530913]
[1762832798919,0.00219803,106460.0,106450.0,0.14530913]
[1762832799121,0.14971616,106480.0,106470.0,0.1520765]
[1762832799315,0.24398992,106480.0,106470.0,0.1520765]
[1762832799824,0.23103992,106480.0,106470.0,0.1520765]
[1762832800721,0.23203992,106480.0,106470.0,0.1540765]
[1762832801426,0.23203992,106480.0,106470.0,0.1560765]
[1762832801926,0.23203992,106480.0,106470.0,0.1570765]
[1762832802226,0.23203992,106480.0,106470.0,0.1550765]
[1762832802424,0.23203992,106480.0,106470.0,0.1540765]
[1762832802724,0.23203992,106480.0,106470.0,0.1560765]
[1762832803023,0.13996419,106480.0,106470.0,0.1560765]
[1762832803225,0.09541419,106480.0,106470.0,0.1560765]
[1762832803623,0.09441419,106480.0,106470.0,0.1540765]
[1762832803931,0.09541419,106480.0,106470.0,0.1580765]
[1762832804627,0.11739419,106480.0,106470.0,0.1580765]
[1762832804829,0.23203992,106480.0,106470.0,0.1580765]
[1762832805030,0.00333846,106480.0,106470.0,0.1580765]
[1762832805218,0.13996419,106480.0,106470.0,0.1580765]
[1762832805417,0.23203992,106480.0,106470.0,0.1580765]
[1762832809324,0.43173325,106480.0,106470.0,0.006]
[1762832809532,0.1440653,106460.0,106450.0,0.09410823]
[1762832809824,0.42249052,106460.0,106450.0,0.00014043]
[1762832810726,0.42249052,106460.0,106450.0,0.00114043]
[1762832810727,0.42549052,106460.0,106450.0,0.00114043]
[1762832811229,0.05562,106440.0,106430.0,0.1382479]
[1762832811428,0.24196949,106440.0,106430.0,0.1382479]
[1762832811628,0.1503318,106430.0,106420.0,0.04426]
[1762832811832,0.33668129,106430.0,106420.0,0.1382606]
[1762832812027,0.33668129,106430.0,106420.0,0.04426]
[1762832812526,0.1503406,106420.0,106410.0,0.1477349]
[1762832812731,0.33669009,106420.0,106410.0,0.0940094]
[1762832812923,0.05853803,106420.0,106410.0,0.1382694]
[1762832813126,0.23897493,106420.0,106410.0,0.0940094]
[1762832813322,0.05634,106410.0,106400.0,0.16122586]
[1762832813629,0.05853803,106410.0,106400.0,0.16122586]
[1762832813827,0.14497433,106410.0,106400.0,0.16122586]
[1762832814028,0.05853803,106410.0,106400.0,0.16122586]
[1762832814233,0.04486803,106410.0,106400.0,0.16122586]
[1762832814734,0.04586803,106410.0,106400.0,0.16322586]
[1762832815631,0.04786803,106410.0,106400.0,0.16322586]
[1762832816330,0.04686803,106410.0,106400.0,0.16122586]
[1762832816534,0.04886803,106410.0,106400.0,0.16222586]
[1762832817028,0.04686803,106410.0,106400.0,0.16222586]
[1762832817341,0.04586803,106410.0,106400.0,0.16222586]
[1762832817723,0.04686803,106410.0,106400.0,0.16222586]
[1762832817933,0.00419803,106410.0,106400.0,0.16222586]
[1762832818934,0.02559803,106410.0,106400.0,0.39718586]
[1762832819328,0.002,106410.0,106400.0,0.39718586]
[1762832820226,0.002,106410.0,106400.0,0.16222586]
[1762832820427,0.00014043,106420.0,106410.0,0.1529894]
[1762832820730,0.20254781,106450.0,106440.0,0.1448029]
[1762832821028,0.05987803,106450.0,106440.0,0.1448029]
[1762832821430,0.20474584,106450.0,106440.0,0.1448029]
[1762832821832,0.20674584,106450.0,106440.0,0.1448029]
[1762832822040,0.04845803,106450.0,106440.0,0.1448029]
[1762832822329,0.00419803,106450.0,106440.0,0.1448029]
[1762832822841,0.002,106450.0,106440.0,0.1448029]
[1762832823035,0.02759803,106450.0,106440.0,0.1458029]
[1762832823331,0.05045803,106450.0,106440.0,0.1458029]
[1762832824841,0.00619803,106450.0,106440.0,0.1458029]
[1762832825035,0.05045803,106450.0,106440.0,0.1458029]
[1762832825434,0.02759803,106450.0,106440.0,0.1458029]
[1762832825928,0.05045803,106450.0,106440.0,0.1458029]
[1762832831143,0.20902584,106450.0,106440.0,0.1458029]
[1762832831345,0.02759803,106450.0,106440.0,0.1458029]
[1762832831550,0.00619803,106450.0,106440.0,0.1458029]
[1762832832045,0.00619803,106450.0,106440.0,0.3806829]
[1762832832642,0.00619803,106450.0,106440.0,0.1458029]
[1762832832643,0.05045803,106450.0,106440.0,0.1458029]
[1762832833647,0.00619803,106450.0,106440.0,0.1458029]
[1762832834033,0.00619803,106450.0,106440.0,0.3806829]
[1762832834237,0.004,106450.0,106440.0,0.3806829]
[1762832834544,0.29676661,106490.0,106480.0,0.1396476]
[1762832834741,0.29896464,106490.0,106470.0,0.107231]
[1762832835047,0.14948233,106480.0,106470.0,0.152931]
[1762832835247,0.15168036,106480.0,106470.0,0.152931]
[1762832835640,0.24562796,106480.0,106470.0,0.139651]
[1762832836449,0.24562796,106480.0,106470.0,0.0457]
[1762832836746,0.24562796,106480.0,106470.0,0.1396564]
[1762832836943,0.24562796,106480.0,106470.0,0.1406564]
[1762832837247,0.24562796,106480.0,106470.0,0.001]
[1762832837447,0.25162796,106480.0,106470.0,0.002]
[1762832838349,0.24662796,106480.0,106470.0,0.003]
[1762832839040,0.06059803,106480.0,106470.0,0.1559364]
[1762832839243,0.24662796,106480.0,106470.0,0.1559364]
[1762832839850,0.15268036,106480.0,106470.0,0.1559364]
[1762832840246,0.06059803,106480.0,106470.0,0.1559364]
[1762832840443,0.13954036,106480.0,106470.0,0.1559364]
[1762832840642,0.13954036,106480.0,106470.0,0.16541327]
[1762832840849,0.19215741,106480.0,106470.0,0.16541327]
[1762832841242,0.00319803,106480.0,106470.0,0.16541327]
[1762832843349,0.001,106480.0,106470.0,0.16541327]
[1762832845648,0.02460803,106480.0,106470.0,0.16541327]
[1762832846853,0.04679803,106480.0,106470.0,0.16541327]
[1762832847854,0.00319803,106480.0,106470.0,0.16541327]
[1762832850552,0.00319803,106480.0,106470.0,0.31101327]
[1762832852450,0.02460803,106480.0,106470.0,0.31101327]
[1762832852658,0.00319803,106480.0,106470.0,0.31101327]
[1762832853250,0.04679803,106480.0,106470.0,0.31101327]
[1762832853643,0.00319803,106480.0,106470.0,0.31101327]
[1762832858354,0.001,106480.0,106470.0,0.31101327]
[1762832858560,0.00014043,106490.0,106480.0,0.1502776]
[1762832858858,0.04593846,106490.0,106480.0,0.1502776]
[1762832859655,0.04693846,106490.0,106480.0,0.1512776]
[1762832860854,0.02474846,106490.0,106480.0,0.1512776]
[1762832861458,0.00333846,106490.0,106480.0,0.1512776]
[1762832862377,0.04693846,106490.0,106480.0,0.1512776]
[1762832862953,0.13899135,106490.0,106480.0,0.1512776]
[1762832865566,0.00333846,106490.0,106480.0,0.24333049]
[1762832866061,0.04693846,106490.0,106480.0,0.1512776]
[1762832866763,0.15180135,106490.0,106480.0,0.1512776]
[1762832870064,0.15180135,106490.0,106480.0,0.1376276]
[1762832870568,0.15180135,106490.0,106480.0,0.1509676]
[1762832871172,0.13899135,106490.0,106480.0,0.1509676]
[1762832871361,0.05970846,106490.0,106480.0,0.1509676]
[1762832871567,0.13899135,106490.0,106480.0,0.1509676]
[1762832872274,0.04693846,106490.0,106480.0,0.1509676]
[1762832873770,0.00114043,106490.0,106480.0,0.1509676]
[1762832873971,0.04275,106520.0,106510.0,0.1512211]
[1762832874178,0.26859762,106520.0,106510.0,0.03174505]
[1762832874475,0.26859762,106520.0,106510.0,0.12566615]
[1762832874678,0.17468532,106520.0,106510.0,0.12566615]
[1762832875064,0.17468532,106520.0,106510.0,0.13900615]
[1762832875268,0.17468532,106520.0,106510.0,0.14000615]
[1762832875269,0.14977092,106520.0,106510.0,0.14000615]
[1762832875469,0.1746679,106520.0,106510.0,0.14100615]
[1762832875777,0.14977092,106520.0,106510.0,0.14100615]
[1762832876878,0.24274105,106520.0,106510.0,0.14200615]
[1762832878867,0.04594803,106520.0,106510.0,0.23401766]
[1762832879073,0.13795954,106520.0,106510.0,0.23401766]
[1762832879475,0.13795954,106520.0,106510.0,0.14200615]
[1762832880678,0.02457803,106520.0,106510.0,0.23401766]
[1762832880881,0.00319803,106520.0,106510.0,0.23401766]
[1762832881080,0.04363043,106530.0,106520.0,0.1443423]
[1762832881276,0.13783997,106530.0,106520.0,0.23635381]
[1762832881485,0.05637,106520.0,106510.0,0.1408489]
[1762832881784,0.05856803,106520.0,106510.0,0.1408489]
[1762832881987,0.13769954,106520.0,106510.0,0.23913041]
[1762832882183,0.04568803,106520.0,106510.0,0.23913041]
[1762832882489,0.14852194,106530.0,106520.0,0.1512923]
[1762832882689,0.13783997,106530.0,106520.0,0.24330381]
[1762832882882,0.13783997,106530.0,106520.0,0.24430381]
[1762832883280,0.00233846,106530.0,106520.0,0.33631532]
[1762832884080,0.04582846,106530.0,106520.0,0.24430381]
[1762832884275,0.00233846,106530.0,106520.0,0.24430381]
[1762832884481,0.00014043,106530.0,106520.0,0.33631532]
[1762832884977,0.00014043,106530.0,106520.0,0.24430381]
[1762832885372,0.04363043,106530.0,106520.0,0.1522923]
[1762832885586,0.04363043,106530.0,106520.0,0.24430381]
[1762832885886,0.04582846,106530.0,106520.0,0.24430381]
[1762832887187,0.02388846,106530.0,106520.0,0.24430381]
[1762832887888,0.04582846,106530.0,106520.0,0.24430381]
[1762832888189,0.00233846,106530.0,106520.0,0.24430381]
[1762832888488,0.00233846,106530.0,106520.0,0.33631532]
[1762832888989,0.14827151,106550.0,106540.0,0.1378247]
[1762832889290,0.15046954,106550.0,106540.0,0.1378247]
[1762832889679,0.15046954,106550.0,106540.0,0.1511647]
[1762832889984,0.24435544,106550.0,106540.0,0.04393]
[1762832890291,0.24635544,106550.0,106540.0,0.1388247]
[1762832890582,0.24835544,106550.0,106540.0,0.1388247]
[1762832890884,0.04968803,106550.0,106540.0,0.2538528]
[1762832891690,0.04968803,106550.0,106540.0,0.16184129]
[1762832891892,0.04968803,106550.0,106540.0,0.2538528]
[1762832892398,0.00419803,106550.0,106540.0,0.16084129]
[1762832892593,0.13564194,106560.0,106550.0,0.1510461]
[1762832892779,0.13637461,106560.0,106550.0,0.15324413]
[1762832892979,0.24313191,106560.0,106550.0,0.04612803]
[1762832893184,0.33514342,106560.0,106550.0,0.14001413]
[1762832893683,0.33614342,106560.0,106550.0,0.14001413]
[1762832894076,0.33714342,106560.0,106550.0,0.14001413]
[1762832895989,0.0463631,106560.0,106550.0,0.24547564]
[1762832896189,0.13837461,106560.0,106550.0,0.24547564]
[1762832896790,0.0463631,106560.0,106550.0,0.24547564]
[1762832896990,0.13837461,106560.0,106550.0,0.24547564]
[1762832897182,0.13837461,106560.0,106550.0,0.15346413]
[1762832897386,0.0463631,106560.0,106550.0,0.15346413]
[1762832897589,0.15125461,106560.0,106550.0,0.15346413]
[1762832899980,0.24326612,106560.0,106550.0,0.15346413]
[1762832900181,0.24326612,106560.0,106550.0,0.14001413]
[1762832900891,0.15125461,106560.0,106550.0,0.14001413]
[1762832901490,0.24513191,106560.0,106550.0,0.14001413]
[1762832901891,0.24326612,106560.0,106550.0,0.14001413]
[1762832902294,0.33714342,106560.0,106550.0,0.00219803]
[1762832902598,0.05749,106540.0,106530.0,0.13983813]
[1762832902800,0.15023418,106540.0,106530.0,0.14203616]
[1762832903596,0.15023418,106540.0,106530.0,0.14403616]
[1762832904098,0.15023418,106540.0,106530.0,0.15256616]
[1762832904590,0.05822267,106540.0,106530.0,0.23683459]
[1762832904795,0.15023418,106540.0,106530.0,0.23683459]
[1762832905096,0.04461267,106540.0,106530.0,0.2540879]
[1762832906096,0.04561267,106540.0,106530.0,0.2560879]
[1762832906889,0.11571418,106540.0,106530.0,0.16407639]
[1762832907088,0.13762418,106540.0,106530.0,0.2560879]
[1762832907290,0.04561267,106540.0,106530.0,0.2560879]
[1762832907984,0.00173267,106540.0,106530.0,0.2560879]
[1762832908786,0.00173267,106540.0,106530.0,0.14544012]
[1762832908787,0.13762418,106540.0,106530.0,0.14544012]
[1762832908992,0.24324569,106540.0,106530.0,0.15555239]
[1762832909299,0.33714059,106540.0,106530.0,0.00633846]
[1762832910501,0.33714059,106540.0,106530.0,0.00414043]
[1762832910802,0.36196347,106540.0,106530.0,0.00414043]
[1762832911194,0.36196347,106540.0,106530.0,0.00045392]
[1762832912092,0.17794045,106540.0,106530.0,0.14015762]
[1762832912297,0.36196347,106540.0,106530.0,0.00045392]
[1762832913990,0.1513937,106530.0,106520.0,0.00014043]
[1762832914195,0.05749,106520.0,106510.0,0.0939213]
[1762832914399,0.33615819,106520.0,106510.0,0.0939213]
[1762832914601,0.33615819,106520.0,106510.0,0.09611933]
[1762832914794,0.24224569,106520.0,106510.0,0.09611933]
[1762832915106,0.24224569,106520.0,106510.0,0.14191933]
[1762832915296,0.24324569,106520.0,106510.0,0.1514736]
[1762832915903,0.24324569,106520.0,106510.0,0.1524736]
[1762832917105,0.15123418,106520.0,106510.0,0.1650936]
[1762832917300,0.04461267,106520.0,106510.0,0.25710511]
[1762832917506,0.04461267,106520.0,106510.0,0.25910511]
[1762832917507,0.13762418,106520.0,106510.0,0.25910511]
[1762832918000,0.15123418,106520.0,106510.0,0.25910511]
[1762832918901,0.13762418,106520.0,106510.0,0.25910511]
[1762832919703,0.00173267,106520.0,106510.0,0.25910511]
[1762832920804,0.001,106520.0,106510.0,0.25910511]
[1762832921006,0.13603194,106540.0,106530.0,0.1513237]
[1762832921306,0.0228431,106540.0,106530.0,0.24553324]
[1762832922310,0.0258431,106540.0,106530.0,0.24653324]
[1762832922707,0.0038731,106540.0,106530.0,0.24653324]
[1762832924007,0.0018731,106540.0,106530.0,0.24653324]
[1762832924610,0.0008731,106540.0,106530.0,0.24653324]
[1762832924912,0.09288461,106540.0,106530.0,0.24653324]
[1762832925713,0.00014043,106540.0,106530.0,0.24653324]
[1762832925914,0.00014043,106540.0,106530.0,0.32337185]
[1762832927513,0.13676461,106540.0,106530.0,0.32337185]
[1762832928108,0.11485461,106540.0,106530.0,0.32337185]
[1762832928316,0.0008731,106540.0,106530.0,0.32337185]
[1762832928711,0.00014043,106540.0,106530.0,0.32337185]
[1762832929412,0.09201151,106560.0,106550.0,0.1518961]
[1762832929614,0.24214569,106560.0,106550.0,0.14147413]
[1762832930407,0.24214569,106560.0,106550.0,0.14247413]
[1762832930612,0.33902299,106560.0,106550.0,0.04858803]
[1762832931223,0.33602299,106560.0,106550.0,0.04758803]
[1762832931424,0.33802299,106560.0,106550.0,0.04858803]
[1762832931616,0.33902299,106560.0,106550.0,0.04858803]
[1762832932522,0.33902299,106560.0,106550.0,0.14247413]
[1762832932718,0.24514569,106560.0,106550.0,0.14247413]
[1762832933314,0.24514569,106560.0,106550.0,0.15545413]
[1762832934624,0.14022418,106560.0,106550.0,0.15545413]
[1762832935910,0.15298418,106560.0,106550.0,0.15545413]
[1762832936121,0.23223569,106560.0,106550.0,0.15142413]
[1762832936319,0.13922418,106560.0,106550.0,0.15342413]
[1762832937721,0.04621267,106560.0,106550.0,0.15542413]
[1762832937921,0.13822418,106560.0,106550.0,0.24743564]
[1762832938913,0.04621267,106560.0,106550.0,0.15542413]
[1762832939622,0.1381427,106560.0,106550.0,0.15542413]
[1762832940123,0.00014043,106570.0,106560.0,0.05784]
[1762832940324,0.04543,106580.0,106570.0,0.1516585]
[1762832940518,0.04616267,106580.0,106570.0,0.15385653]
[1762832940714,0.05819,106560.0,106550.0,0.02742]
[1762832940919,0.24278273,106560.0,106550.0,0.05236803]
[1762832941225,0.33666003,106560.0,106550.0,0.00719803]
[1762832941420,0.33666003,106560.0,106550.0,0.12350413]
[1762832941421,0.24278273,106560.0,106550.0,0.12350413]
[1762832941623,0.00014043,106570.0,106560.0,0.1517173]
[1762832941823,0.0463031,106570.0,106560.0,0.15491533]
[1762832942024,0.0463031,106570.0,106560.0,0.15691533]
[1762832942528,0.15099313,106570.0,106560.0,0.15591533]
[1762832943028,0.0590631,106570.0,106560.0,0.15591533]
[1762832944124,0.0590631,106570.0,106560.0,0.15691533]
[1762832945722,0.15099313,106570.0,106560.0,0.06303803]
[1762832945924,0.15099313,106570.0,106560.0,0.15691533]
[1762832946231,0.15099313,106570.0,106560.0,0.14424533]
[1762832946431,0.24486163,106570.0,106560.0,0.14424533]
[1762832946729,0.24486163,106570.0,106560.0,0.05036803]
[1762832946929,0.15099313,106570.0,106560.0,0.14424533]
[1762832947326,0.0590631,106570.0,106560.0,0.15691533]
[1762832947527,0.15099313,106570.0,106560.0,0.15691533]
[1762832949328,0.24486163,106570.0,106560.0,0.05036803]
[1762832949933,0.24486163,106570.0,106560.0,0.00519803]
[1762832950230,0.24486163,106570.0,106560.0,0.02761803]
[1762832950436,0.24486163,106570.0,106560.0,0.00519803]
[1762832951223,0.24486163,106570.0,106560.0,0.00319803]
[1762832951431,0.24486163,106570.0,106560.0,0.09707533]
[1762832952029,0.24486163,106570.0,106560.0,0.09607533]
[1762832952234,0.15099313,106570.0,106560.0,0.14124533]
[1762832953827,0.15099313,106570.0,106560.0,0.15491533]
[1762832954234,0.15099313,106570.0,106560.0,0.15691533]
[1762832955631,0.15099313,106570.0,106560.0,0.14424533]
[1762832955834,0.24486163,106570.0,106560.0,0.14424533]
[1762832956338,0.24486163,106570.0,106560.0,0.05036803]
[1762832957534,0.24486163,106570.0,106560.0,0.00519803]
[1762832958033,0.24486163,106570.0,106560.0,0.02761803]
[1762832958228,0.24486163,106570.0,106560.0,0.12149533]
[1762832958433,0.1529316,106570.0,106560.0,0.14424533]
[1762832958625,0.15099313,106570.0,106560.0,0.14424533]
[1762832958831,0.24486163,106570.0,106560.0,0.09907533]
[1762832959032,0.24486163,106570.0,106560.0,0.12149533]
[1762832959234,0.24486163,106570.0,106560.0,0.14424533]
[1762832959438,0.1529316,106570.0,106560.0,0.14424533]
[1762832959632,0.24486163,106570.0,106560.0,0.05036803]
[1762832959833,0.24486163,106570.0,106560.0,0.02777803]
[1762832961339,0.24486163,106570.0,106560.0,0.12165533]
[1762832961538,0.24486163,106570.0,106560.0,0.14416533]
[1762832964636,0.15099313,106570.0,106560.0,0.14416533]
[1762832964836,0.24486163,106570.0,106560.0,0.14416533]
[1762832967745,0.24486163,106570.0,106560.0,0.05028803]
[1762832967932,0.24486163,106570.0,106560.0,0.14416533]
[1762832971541,0.24486163,106570.0,106560.0,0.02777803]
[1762832971946,0.24486163,106570.0,106560.0,0.00519803]
[1762832972532,0.26999788,106570.0,106560.0,0.00519803]
[1762832973040,0.62939788,106570.0,106560.0,0.003]
[1762832973846,0.62939788,106570.0,106560.0,0.002]
[1762832974146,0.62939788,106570.0,106560.0,0.0958773]
[1762832974347,0.62939788,106570.0,106560.0,0.09807533]
[1762832974847,0.62939788,106570.0,106560.0,0.00419803]
[1762832975149,0.62939788,106570.0,106560.0,0.00219803]
[1762832976037,0.1525961,106550.0,106540.0,0.13790243]
[1762832976241,0.2452588,106550.0,106540.0,0.14010046]
[1762832977045,0.2462588,106550.0,106540.0,0.14310046]
[1762832978153,0.2462588,106550.0,106540.0,0.12181046]
[1762832978642,0.05884,106530.0,106520.0,0.1366166]
[1762832978948,0.2454064,106530.0,106520.0,0.13881463]
[1762832980743,0.2454064,106530.0,106520.0,0.13981463]
[1762832981436,0.2454064,106530.0,106520.0,0.14181463]
[1762832981641,0.1515027,106530.0,106520.0,0.14181463]
[1762832984153,0.2454064,106530.0,106520.0,0.14181463]
[1762832985147,0.2454064,106530.0,106520.0,0.04790803]
[1762832985846,0.33733643,106530.0,106520.0,0.04790803]
[1762832986049,0.69673643,106530.0,106520.0,0.00519803]
[1762832986250,0.69673643,106530.0,106520.0,0.003]
[1762832990454,0.69673643,106530.0,106520.0,0.00519803]
[1762832990656,0.69673643,106530.0,106520.0,0.09911053]
[1762832992249,0.69673643,106530.0,106520.0,0.12130053]
[1762832992853,0.69673643,106530.0,106520.0,0.09911053]
[1762832995552,0.69673643,106530.0,106520.0,0.12130053]
[1762832995959,0.04588267,106530.0,106520.0,0.15717053]
[1762832996449,0.04605267,106530.0,106520.0,0.15717053]
[1762832997653,0.00073267,106530.0,106520.0,0.48378056]
[1762832997853,0.00073267,106530.0,106520.0,0.24910056]
[1762832998059,0.04724267,106530.0,106520.0,0.15717053]
[1762832998762,0.1391727,106530.0,106520.0,0.15717053]
[1762832999261,0.04724267,106530.0,106520.0,0.15717053]
[1762833000958,0.13921912,106530.0,106520.0,0.24914698]
[1762833001161,0.00073267,106530.0,106520.0,0.48382698]
[1762833001364,0.00014043,106540.0,106530.0,0.1514437]
[1762833001559,0.00014043,106540.0,106530.0,0.24561818]
[1762833002264,0.0008731,106540.0,106530.0,0.24561818]
[1762833002451,0.0473831,106540.0,106530.0,0.15364173]
[1762833002652,0.0241131,106540.0,106530.0,0.24561818]
[1762833002964,0.0008731,106540.0,106530.0,0.24561818]
[1762833003167,0.00014043,106540.0,106530.0,0.24561818]
[1762833004556,0.00114043,106540.0,106530.0,0.24861818]
[1762833005158,0.00114043,106540.0,106530.0,0.32745679]
[1762833006368,0.04651,106560.0,106550.0,0.1512961]
[1762833006670,0.04651,106560.0,106550.0,0.24547058]
[1762833006671,0.09270912,106560.0,106550.0,0.24547058]
[1762833006871,0.11594912,106560.0,106550.0,0.24547058]
[1762833007172,0.13921912,106560.0,106550.0,0.24547058]
[1762833008468,0.04665043,106570.0,106560.0,0.1419773]
[1762833008677,0.13935955,106570.0,106560.0,0.23615178]
[1762833008973,0.0008731,106570.0,106560.0,0.23615178]
[1762833009279,0.0008731,106570.0,106560.0,0.32812823]
[1762833009480,0.0008731,106570.0,106560.0,0.23615178]
[1762833009773,0.11608955,106570.0,106560.0,0.23615178]
[1762833010078,0.09384955,106570.0,106560.0,0.23615178]
[1762833010276,0.00214043,106570.0,106560.0,0.23615178]
[1762833010476,0.00214043,106570.0,106560.0,0.32812823]
[1762833011173,0.00114043,106570.0,106560.0,0.32812823]
[1762833011384,0.0251131,106570.0,106560.0,0.23615178]
[1762833011580,0.0008731,106570.0,106560.0,0.23615178]
[1762833011772,0.15518955,106570.0,106560.0,0.05029803]
[1762833012077,0.15518955,106570.0,106560.0,0.14417533]
[1762833013177,0.00414043,106570.0,106560.0,0.14517533]
[1762833013371,0.00414043,106570.0,106560.0,0.32912823]
[1762833013775,0.00114043,106570.0,106560.0,0.23615178]
[1762833014272,0.00314043,106570.0,106560.0,0.23615178]
[1762833014473,0.00314043,106570.0,106560.0,0.32812823]
[1762833014775,0.05934,106600.0,106590.0,0.1376309]
[1762833015080,0.24402557,106600.0,106590.0,0.04597803]
[1762833015374,0.24402557,106600.0,106590.0,0.00219803]
[1762833015375,0.33786767,106600.0,106590.0,0.00219803]
[1762833015772,0.15391477,106600.0,106590.0,0.00219803]
[1762833015968,0.1531909,106590.0,106580.0,0.00014043]
[1762833016279,0.33787647,106590.0,106580.0,0.00014043]
[1762833016481,0.33787647,106590.0,106580.0,0.00233846]
[1762833016679,0.33787647,106590.0,106580.0,0.00014043]
[1762833017381,0.33887647,106590.0,106580.0,0.00414043]
[1762833017573,0.04824267,106590.0,106580.0,0.14689816]
[1762833017770,0.04824267,106590.0,106580.0,0.23887461]
[1762833017771,0.14021912,106590.0,106580.0,0.23887461]
[1762833017984,0.15204912,106590.0,106580.0,0.14289816]
[1762833018182,0.15204912,106590.0,106580.0,0.14389816]
[1762833018388,0.15204912,106590.0,106580.0,0.04711846]
[1762833018590,0.15204912,106590.0,106580.0,0.14097816]
[1762833018881,0.1462261,106590.0,106580.0,0.14097816]
[1762833019482,0.1462261,106590.0,106580.0,0.14397816]
[1762833019987,0.01283,106600.0,106590.0,0.1159909]
[1762833020181,0.04512267,106600.0,106590.0,0.22969236]
[1762833020382,0.04512267,106600.0,106590.0,0.14353893]
[1762833021085,0.04512267,106600.0,106590.0,0.14753893]